[Event "Dvorkovich Memorial Rapid 2018"]
[Site "Taganrog"]
[Date "2018.01.14"]
[Round "9"]
[White "Nazaretyan, Tigran"]
[Black "Danchenko, Artemiy"]
[Result "1-0"]
[ECO "D37"]
[WhiteElo "2285"]
[BlackElo "1836"]
[Annotator "ChessBase"]
[PlyCount "83"]
[EventDate "2018.??.??"]
[EventType "swiss"]
[EventCountry "RUS"]
[SourceTitle "playchess.com"]
[Source "ChessBase"]
[SourceQuality "1"]
[TimeControl "900+10"]

1. d4 {[%emt 0:00:00]} d5 {[%emt 0:00:10]} 2. c4 {[%emt 0:00:04]} e6 {[%emt 0:00:01]} 3. Nf3 {[%emt 0:00:13]} Nf6 {[%emt 0:00:00]} 4. Nc3 {[%emt 0:00:00]} Be7 {[%emt 0:00:01]} 5. Bf4 {[%emt 0:00:00]} O-O {[%emt 0:00:09]} 6. e3 {[%emt 0:00:48]} Nbd7 {[%emt 0:00:00]} 7. c5 {[%emt 0:00:00]} c6 {[%emt 0:00:00]} 8. h3 {[%emt 0:00:18]} Ne4 {[%emt 0:01:09]} 9. Nxe4 {[%emt 0:00:49]} dxe4 {[%emt 0:00:01]} 10. Ne5 {[%emt 0:00:08]} Nxe5 {[%emt 0:02:00]} 11. Bxe5 {[%emt 0:00:03]} b6 {[%emt 0:00:12]} 12. b4 {[%emt 0:00:18]} a5 {[%emt 0:02:00]} 13. a3 {[%emt 0:00:07]} Qd5 {[%emt 0:00:45]} 14. Be2 {[%emt 0:01:47]} bxc5 {[%emt 0:00:37]} 15. bxc5 {[%emt 0:00:03]} Bxc5 {[%emt 0:00:43]} 16. Qc2 {[%emt 0:00:48]} Be7 {[%emt 0:00:45]} 17. Bc4 {[%emt 0:00:31]} Qd7 {[%emt 0:00:04]} 18. Qxe4 {[%emt 0:00:06]} Bb7 {[%emt 0:01:11]} 19. O-O {[%emt 0:00:30]} c5 {[%emt 0:00:49]} 20. Qg4 {[%emt 0:00:08]} g6 {[%emt 0:01:07]} 21. Rfd1 {[%emt 0:02:06]} cxd4 {[%emt 0:01:17]} 22. Rxd4 {[%emt 0:00:05]} Qc6 {[%emt 0:00:11]} 23. a4 {[%emt 0:01:28]} h5 {[%emt 0:01:12]} 24. Qg3 {[%emt 0:00:23]} Rfd8 {[%emt 0:00:24]} 25. Bb5 {[%emt 0:00:57]} Qb6 {[%emt 0:00:54]} 26. Bc7 {[%emt 0:00:28]} Qc5 {[%emt 0:00:24]} 27. Bxd8 {[%emt 0:00:17]} Rxd8 {[%emt 0:00:01]} 28. Rxd8+ {[%emt 0:00:28]} Bxd8 {[%emt 0:00:02]} 29. Qb8 {[%emt 0:00:16]} Qd5 {[%emt 0:00:19]} 30. e4 {[%emt 0:00:14]} Qd4 {[%emt 0:00:01]} 31. Re1 {[%emt 0:00:21]} Bxe4 {[%emt 0:00:33]} 32. Rxe4 {[%emt 0:00:47]} Qxe4 {[%emt 0:00:01]} 33. Qxd8+ {[%emt 0:00:02]} Kg7 {[%emt 0:00:00]} 34. Qxa5 {[%emt 0:00:10]} Qb1+ {[%emt 0:00:33]} 35. Bf1 {[%emt 0:00:11]} Qe4 {[%emt 0:00:05]} 36. Qc3+ {[%emt 0:00:10]} Kh7 {[%emt 0:00:04]} 37. a5 {[%emt 0:00:05]} Qa8 {[%emt 0:00:13]} 38. a6 {[%emt 0:00:04]} Qa7 {[%emt 0:00:05]} 39. Qb2 {[%emt 0:00:04]} Qa8 {[%emt 0:00:15]} 40. Qb7 {[%emt 0:00:05]} Qd8 {[%emt 0:00:08]} 41. Qxf7+ {[%emt 0:00:06]} Kh6 {[%emt 0:00:07]} 42. Qxe6 {[%emt 0:00:04]} 1-0

[Event "Dvorkovich Memorial Rapid 2018"]
[Site "Taganrog"]
[Date "2018.01.14"]
[Round "10"]
[White "Kotenko, Pavel"]
[Black "Pshmahov, Osman"]
[Result "1-0"]
[ECO "C11"]
[WhiteElo "2403"]
[BlackElo "2103"]
[Annotator "ChessBase"]
[PlyCount "113"]
[EventDate "2018.??.??"]
[EventType "swiss"]
[EventCountry "RUS"]
[SourceTitle "playchess.com"]
[Source "ChessBase"]
[SourceQuality "1"]
[TimeControl "900+10"]

1. e4 {[%emt 0:00:00]} e6 {[%emt 0:00:13]} 2. d4 {[%emt 0:00:00]} d5 {[%emt 0:00:00]} 3. Nc3 {[%emt 0:00:00]} Nf6 {[%emt 0:00:10]} 4. e5 {[%emt 0:00:00]} Nfd7 {[%emt 0:00:04]} 5. f4 {[%emt 0:00:00]} c5 {[%emt 0:00:02]} 6. Nf3 {[%emt 0:00:00]} Nc6 {[%emt 0:00:14]} 7. Be3 {[%emt 0:00:02]} c4 {[%emt 0:00:31]} 8. f5 {[%emt 0:00:54]} exf5 {[%emt 0:01:37]} 9. Nxd5 {[%emt 0:00:10]} Qa5+ {[%emt 0:00:25]} 10. Nc3 {[%emt 0:00:21]} Bb4 {[%emt 0:00:07]} 11. Be2 {[%emt 0:04:03]} Nb6 {[%emt 0:00:27]} 12. O-O {[%emt 0:00:05]} Bxc3 {[%emt 0:00:00]} 13. bxc3 {[%emt 0:00:12]} Be6 {[%emt 0:00:01]} 14. Bd2 {[%emt 0:01:36]} O-O-O {[%emt 0:00:19]} 15. Ng5 {[%emt 0:00:24]} h6 {[%emt 0:00:15]} 16. Nxe6 {[%emt 0:00:15]} fxe6 {[%emt 0:00:01]} 17. a4 {[%emt 0:00:25]} g5 {[%emt 0:00:28]} 18. Rf2 {[%emt 0:00:48]} g4 {[%emt 0:01:24]} 19. Bf1 {[%emt 0:02:04]} Ne7 {[%emt 0:03:36]} 20. Qb1 {[%emt 0:00:38]} Ned5 {[%emt 0:01:00]} 21. Qb5 {[%emt 0:00:12]} Qxb5 {[%emt 0:00:02]} 22. axb5 {[%emt 0:00:01]} Kb8 {[%emt 0:00:00]} 23. g3 {[%emt 0:01:58]} Nc7 {[%emt 0:00:55]} 24. Bg2 {[%emt 0:01:08]} Nxb5 {[%emt 0:00:18]} 25. Rff1 {[%emt 0:00:29]} Nc7 {[%emt 0:02:34]} 26. Rfb1 {[%emt 0:00:27]} Ncd5 {[%emt 0:00:42]} 27. Ra3 {[%emt 0:00:28]} Rd7 {[%emt 0:01:23]} 28. Kf2 {[%emt 0:00:03]} h5 {[%emt 0:00:21]} 29. Bg5 {[%emt 0:00:17]} Rg8 {[%emt 0:00:13]} 30. Bd2 {[%emt 0:00:17]} Rf7 {[%emt 0:01:05]} 31. Rba1 {[%emt 0:02:43]} a6 {[%emt 0:00:04]} 32. Rb1 {[%emt 0:00:00]} Ka7 {[%emt 0:00:05]} 33. Ra2 {[%emt 0:00:00]} Rgf8 {[%emt 0:01:54]} 34. Kg1 {[%emt 0:00:00]} h4 {[%emt 0:00:10]} 35. Bf1 {[%emt 0:00:16]} Rh8 {[%emt 0:00:00]} 36. Bg2 {[%emt 0:00:07]} Rfh7 {[%emt 0:00:20]} 37. Kf2 {[%emt 0:00:37]} hxg3+ {[%emt 0:00:10]} 38. hxg3 {[%emt 0:00:10]} Rf8 {[%emt 0:00:10]} 39. Kg1 {[%emt 0:00:10]} Rff7 {[%emt 0:00:10]} 40. Bh1 {[%emt 0:00:00]} Rh3 {[%emt 0:00:10]} 41. Be1 {[%emt 0:00:00]} f4 {[%emt 0:00:10]} 42. Bg2 {[%emt 0:00:00]} Rxg3 {[%emt 0:00:10]} 43. Bxg3 {[%emt 0:00:40]} Nxc3 {[%emt 0:00:10]} 44. Rxb6 {[%emt 0:00:10]} Nxa2 {[%emt 0:00:10]} 45. Rxe6 {[%emt 0:00:10]} fxg3 {[%emt 0:00:10]} 46. Rf6 {[%emt 0:00:10]} Re7 {[%emt 0:00:10]} 47. e6 {[%emt 0:00:10]} Nc3 {[%emt 0:00:10]} 48. d5 {[%emt 0:00:10]} Ne2+ {[%emt 0:00:10]} 49. Kf1 {[%emt 0:00:10]} Nd4 {[%emt 0:00:10]} 50. Rf7 {[%emt 0:00:10]} Re8 {[%emt 0:00:10]} 51. d6 {[%emt 0:00:10]} Rxe6 {[%emt 0:00:10]} 52. Rxb7+ {[%emt 0:00:10]} Ka8 {[%emt 0:00:00]} 53. d7 {[%emt 0:00:10]} Rf6+ {[%emt 0:00:20]} 54. Ke1 {[%emt 0:00:10]} Nxc2+ {[%emt 0:00:10]} 55. Kd2 {[%emt 0:00:10]} Rf2+ {[%emt 0:00:10]} 56. Kc3 {[%emt 0:00:10]} Rxg2 {[%emt 0:00:10]} 57. Rc7 {[%emt 0:00:10]} 1-0

[Event "Dvorkovich Memorial Rapid 2018"]
[Site "Taganrog"]
[Date "2018.01.14"]
[Round "10"]
[White "Tomilova, Elena"]
[Black "Tunik, Gennady"]
[Result "0-1"]
[ECO "A45"]
[WhiteElo "2331"]
[BlackElo "2378"]
[Annotator "ChessBase"]
[PlyCount "138"]
[EventDate "2018.??.??"]
[EventType "swiss"]
[EventCountry "RUS"]
[SourceTitle "playchess.com"]
[Source "ChessBase"]
[SourceQuality "1"]
[TimeControl "900+10"]

1. d4 {[%emt 0:00:00]} Nf6 {[%emt 0:00:00]} 2. Bg5 {[%emt 0:00:00]} e6 {[%emt 0:00:00]} 3. e4 {[%emt 0:00:00]} h6 {[%emt 0:00:00]} 4. Bxf6 {[%emt 0:00:00]} Qxf6 {[%emt 0:00:02]} 5. c3 {[%emt 0:00:00]} Qd8 {[%emt 0:00:07]} 6. Bd3 {[%emt 0:00:10]} b6 {[%emt 0:00:15]} 7. Ne2 {[%emt 0:00:08]} Bb7 {[%emt 0:00:00]} 8. O-O {[%emt 0:00:06]} d6 {[%emt 0:00:00]} 9. Nd2 {[%emt 0:00:04]} Nd7 {[%emt 0:00:06]} 10. f4 {[%emt 0:00:25]} g5 {[%emt 0:01:18]} 11. Ng3 {[%emt 0:01:12]} Qe7 {[%emt 0:00:31]} 12. Qa4 {[%emt 0:02:50]} a6 {[%emt 0:01:20]} 13. f5 {[%emt 0:00:26]} b5 {[%emt 0:00:47]} 14. Qc2 {[%emt 0:00:30]} e5 {[%emt 0:00:27]} 15. d5 {[%emt 0:00:26]} Nf6 {[%emt 0:00:23]} 16. a4 {[%emt 0:00:02]} bxa4 {[%emt 0:00:58]} 17. Qxa4+ {[%emt 0:00:12]} Qd7 {[%emt 0:00:00]} 18. Qb3 {[%emt 0:00:46]} Qc8 {[%emt 0:00:15]} 19. Nc4 {[%emt 0:00:20]} Qb8 {[%emt 0:00:34]} 20. Ra4 {[%emt 0:00:54]} Qa7+ {[%emt 0:00:00]} 21. Kh1 {[%emt 0:00:03]} h5 {[%emt 0:00:58]} 22. Na5 {[%emt 0:01:45]} Bc8 {[%emt 0:00:05]} 23. Nc6 {[%emt 0:00:35]} Qe3 {[%emt 0:00:00]} 24. Qc2 {[%emt 0:00:11]} h4 {[%emt 0:00:06]} 25. Ne2 {[%emt 0:01:27]} h3 {[%emt 0:02:17]} 26. g3 {[%emt 0:00:05]} Bd7 {[%emt 0:00:43]} 27. Nc1 {[%emt 0:00:48]} Bxc6 {[%emt 0:00:00]} 28. dxc6 {[%emt 0:00:11]} Qb6 {[%emt 0:00:07]} 29. Qe2 {[%emt 0:00:11]} Ke7 {[%emt 0:00:38]} 30. Rxa6 {[%emt 0:02:33]} Rxa6 {[%emt 0:00:00]} 31. Bxa6 {[%emt 0:00:00]} Qxc6 {[%emt 0:00:02]} 32. Bd3 {[%emt 0:00:09]} d5 {[%emt 0:00:19]} 33. Re1 {[%emt 0:00:18]} dxe4 {[%emt 0:00:25]} 34. Bxe4 {[%emt 0:00:00]} Nxe4 {[%emt 0:00:12]} 35. Qxe4 {[%emt 0:00:06]} Qxe4+ {[%emt 0:00:00]} 36. Rxe4 {[%emt 0:00:00]} Kf6 {[%emt 0:00:19]} 37. g4 {[%emt 0:00:00]} Bc5 {[%emt 0:00:10]} 38. Re1 {[%emt 0:00:52]} Rd8 {[%emt 0:00:08]} 39. Ne2 {[%emt 0:00:27]} Bf2 {[%emt 0:00:22]} 40. Rf1 {[%emt 0:00:52]} Bh4 {[%emt 0:00:26]} 41. Ng3 {[%emt 0:01:55]} Bxg3 {[%emt 0:00:12]} 42. hxg3 {[%emt 0:00:01]} Rd2 {[%emt 0:00:01]} 43. Ra1 {[%emt 0:00:07]} e4 {[%emt 0:01:09]} 44. Ra6+ {[%emt 0:00:16]} Ke5 {[%emt 0:00:02]} 45. Ra8 {[%emt 0:00:29]} Rxb2 {[%emt 0:00:09]} 46. Re8+ {[%emt 0:00:09]} Kd5 {[%emt 0:00:02]} 47. Re7 {[%emt 0:00:16]} f6 {[%emt 0:00:15]} 48. Rd7+ {[%emt 0:00:15]} Kc4 {[%emt 0:00:51]} 49. Rd4+ {[%emt 0:00:08]} Kxc3 {[%emt 0:00:00]} 50. Rxe4 {[%emt 0:00:00]} c5 {[%emt 0:00:32]} 51. Re6 {[%emt 0:00:02]} Kd4 {[%emt 0:00:35]} 52. Rxf6 {[%emt 0:00:22]} Ke4 {[%emt 0:00:52]} 53. Rc6 {[%emt 0:00:17]} Kf3 {[%emt 0:00:49]} 54. Rxc5 {[%emt 0:00:13]} Kxg4 {[%emt 0:00:14]} 55. f6 {[%emt 0:00:14]} Rf2 {[%emt 0:00:02]} 56. Rc6 {[%emt 0:00:00]} Kxg3 {[%emt 0:00:05]} 57. Rc3+ {[%emt 0:00:15]} Kh4 {[%emt 0:00:01]} 58. Rc6 {[%emt 0:00:24]} g4 {[%emt 0:00:04]} 59. Kg1 {[%emt 0:00:00]} Rf3 {[%emt 0:00:07]} 60. Rc4 {[%emt 0:00:13]} Rxf6 {[%emt 0:00:05]} 61. Ra4 {[%emt 0:00:05]} Rf3 {[%emt 0:00:26]} 62. Rb4 {[%emt 0:00:10]} Kg3 {[%emt 0:00:04]} 63. Rb1 {[%emt 0:00:01]} Rc3 {[%emt 0:00:17]} 64. Rf1 {[%emt 0:00:08]} Rc4 {[%emt 0:00:08]} 65. Ra1 {[%emt 0:00:07]} Kh4 {[%emt 0:00:02]} 66. Rd1 {[%emt 0:00:32]} g3 {[%emt 0:00:02]} 67. Ra1 {[%emt 0:00:03]} h2+ {[%emt 0:00:03]} 68. Kg2 {[%emt 0:00:18]} Rc2+ {[%emt 0:00:02]} 69. Kh1 {[%emt 0:00:04]} Kh3 {[%emt 0:00:01]} 0-1

[Event "Dvorkovich Memorial Rapid 2018"]
[Site "Taganrog"]
[Date "2018.01.14"]
[Round "10"]
[White "Mirzoyan, Mikhail"]
[Black "Anikonov, Dmitry"]
[Result "0-1"]
[ECO "C41"]
[WhiteElo "2275"]
[BlackElo "2407"]
[Annotator "ChessBase"]
[PlyCount "49"]
[EventDate "2018.??.??"]
[EventType "swiss"]
[EventCountry "RUS"]
[SourceTitle "playchess.com"]
[Source "ChessBase"]
[SourceQuality "1"]
[TimeControl "900+10"]

1. e4 {[%emt 0:00:00]} d6 {[%emt 0:00:02]} 2. d4 {[%emt 0:00:00]} Nf6 {[%emt 0:00:00]} 3. Nc3 {[%emt 0:00:00]} e5 {[%emt 0:00:00]} 4. Nf3 {[%emt 0:00:01]} exd4 {[%emt 0:00:05]} 5. Nxd4 {[%emt 0:00:00]} Be7 {[%emt 0:00:00]} 6. Bc4 {[%emt 0:00:03]} O-O {[%emt 0:00:04]} 7. O-O {[%emt 0:02:41]} Re8 {[%emt 0:00:03]} 8. Re1 {[%emt 0:00:15]} Nbd7 {[%emt 0:00:01]} 9. b3 {[%emt 0:01:17]} Ne5 {[%emt 0:00:20]} 10. Bf1 {[%emt 0:00:01]} c6 {[%emt 0:00:00]} 11. Bb2 {[%emt 0:00:00]} Bd7 {[%emt 0:00:10]} 12. f4 {[%emt 0:00:32]} Ng6 {[%emt 0:00:01]} 13. Qf3 {[%emt 0:00:04]} Bf8 {[%emt 0:00:00]} 14. Kh1 {[%emt 0:00:00]} b5 {[%emt 0:00:24]} 15. a3 {[%emt 0:01:05]} Qb6 {[%emt 0:00:09]} 16. Rad1 {[%emt 0:00:17]} Bg4 {[%emt 0:00:03]} 17. Qe3 {[%emt 0:00:58]} Bxd1 {[%emt 0:00:16]} 18. Rxd1 {[%emt 0:00:11]} Rad8 {[%emt 0:01:29]} 19. Qf3 {[%emt 0:01:19]} d5 {[%emt 0:00:16]} 20. e5 {[%emt 0:00:00]} Ne4 {[%emt 0:00:03]} 21. Nce2 {[%emt 0:01:58]} Nh4 {[%emt 0:01:38]} 22. Qe3 {[%emt 0:00:22]} c5 {[%emt 0:00:05]} 23. Nf3 {[%emt 0:00:00]} Nf5 {[%emt 0:00:09]} 24. Qg1 {[%emt 0:00:17]} d4 {[%emt 0:00:00]} 25. Bc1 {[%emt 0:03:49]} 0-1

[Event "Dvorkovich Memorial Rapid 2018"]
[Site "Taganrog"]
[Date "2018.01.14"]
[Round "10"]
[White "Maltsevskaya, Aleksandra"]
[Black "Ashrafzianov, Igor"]
[Result "0-1"]
[ECO "B01"]
[WhiteElo "2274"]
[BlackElo "2004"]
[Annotator "ChessBase"]
[PlyCount "148"]
[EventDate "2018.??.??"]
[EventType "swiss"]
[EventCountry "RUS"]
[SourceTitle "playchess.com"]
[Source "ChessBase"]
[SourceQuality "1"]
[TimeControl "900+10"]

1. e4 {[%emt 0:00:00]} d5 {[%emt 0:00:00]} 2. exd5 {[%emt 0:00:00]} Nf6 {[%emt 0:00:00]} 3. Nf3 {[%emt 0:00:00]} Nxd5 {[%emt 0:00:00]} 4. d4 {[%emt 0:00:00]} g6 {[%emt 0:00:06]} 5. c3 {[%emt 0:00:08]} Bg7 {[%emt 0:00:13]} 6. Be2 {[%emt 0:00:31]} O-O {[%emt 0:00:00]} 7. O-O {[%emt 0:00:01]} Nc6 {[%emt 0:00:29]} 8. Nbd2 {[%emt 0:02:43]} e5 {[%emt 0:00:41]} 9. dxe5 {[%emt 0:00:50]} Nxe5 {[%emt 0:00:05]} 10. Nxe5 {[%emt 0:00:18]} Bxe5 {[%emt 0:00:04]} 11. Nf3 {[%emt 0:00:01]} Bg7 {[%emt 0:00:30]} 12. Bg5 {[%emt 0:00:03]} Nf6 {[%emt 0:00:03]} 13. Qb3 {[%emt 0:02:15]} c6 {[%emt 0:00:28]} 14. a4 {[%emt 0:03:48]} Qb6 {[%emt 0:00:11]} 15. Qa3 {[%emt 0:00:03]} Re8 {[%emt 0:01:10]} 16. Bc4 {[%emt 0:00:40]} Be6 {[%emt 0:00:25]} 17. Bxe6 {[%emt 0:00:38]} Rxe6 {[%emt 0:00:00]} 18. Nd4 {[%emt 0:00:12]} Ree8 {[%emt 0:00:22]} 19. Bf4 {[%emt 0:01:51]} Ne4 {[%emt 0:01:47]} 20. Be3 {[%emt 0:00:14]} Qc7 {[%emt 0:00:09]} 21. Nf3 {[%emt 0:01:01]} Nf6 {[%emt 0:01:33]} 22. Bd4 {[%emt 0:00:07]} Nd5 {[%emt 0:00:00]} 23. Bxg7 {[%emt 0:00:03]} Kxg7 {[%emt 0:00:00]} 24. Rae1 {[%emt 0:00:13]} Nf6 {[%emt 0:00:36]} 25. Qb3 {[%emt 0:01:18]} Rxe1 {[%emt 0:00:23]} 26. Rxe1 {[%emt 0:00:02]} Re8 {[%emt 0:00:03]} 27. Rxe8 {[%emt 0:00:31]} Nxe8 {[%emt 0:00:00]} 28. h3 {[%emt 0:00:08]} Nf6 {[%emt 0:00:08]} 29. Qc4 {[%emt 0:00:05]} Qd6 {[%emt 0:00:05]} 30. Qe2 {[%emt 0:00:19]} Qc5 {[%emt 0:00:55]} 31. Nd4 {[%emt 0:00:19]} Qd6 {[%emt 0:00:17]} 32. Qd3 {[%emt 0:01:22]} Qf4 {[%emt 0:00:04]} 33. Qd1 {[%emt 0:00:20]} Ne4 {[%emt 0:00:00]} 34. Nf3 {[%emt 0:00:02]} Nf6 {[%emt 0:00:16]} 35. Qe2 {[%emt 0:00:10]} Qxa4 {[%emt 0:00:00]} 36. Nd4 {[%emt 0:00:07]} Qa1+ {[%emt 0:00:42]} 37. Kh2 {[%emt 0:00:01]} Qc1 {[%emt 0:00:00]} 38. g3 {[%emt 0:00:31]} c5 {[%emt 0:00:24]} 39. Nb3 {[%emt 0:00:17]} Qg5 {[%emt 0:00:13]} 40. Nd2 {[%emt 0:00:05]} b6 {[%emt 0:00:00]} 41. Nc4 {[%emt 0:00:05]} Qd5 {[%emt 0:00:17]} 42. Ne3 {[%emt 0:00:00]} Qe4 {[%emt 0:00:09]} 43. Qd1 {[%emt 0:00:06]} h5 {[%emt 0:00:07]} 44. Kg1 {[%emt 0:00:20]} a6 {[%emt 0:00:18]} 45. Qe2 {[%emt 0:00:12]} b5 {[%emt 0:00:06]} 46. Qd2 {[%emt 0:00:18]} Qe6 {[%emt 0:00:19]} 47. Kh2 {[%emt 0:00:09]} Ne4 {[%emt 0:00:00]} 48. Qe2 {[%emt 0:00:10]} c4 {[%emt 0:00:21]} 49. Qf3 {[%emt 0:00:13]} Nc5 {[%emt 0:00:08]} 50. Qe2 {[%emt 0:00:05]} Nd3 {[%emt 0:00:12]} 51. b3 {[%emt 0:00:15]} Nc1 {[%emt 0:00:21]} 52. Qf3 {[%emt 0:00:13]} Nxb3 {[%emt 0:00:02]} 53. Qb7 {[%emt 0:00:06]} Nc5 {[%emt 0:00:09]} 54. Qa7 {[%emt 0:00:02]} Nd3 {[%emt 0:00:07]} 55. f4 {[%emt 0:00:09]} Qe4 {[%emt 0:01:12]} 56. Kg1 {[%emt 0:00:16]} h4 {[%emt 0:00:13]} 57. f5 {[%emt 0:00:19]} gxf5 {[%emt 0:01:23]} 58. gxh4 {[%emt 0:00:07]} f4 {[%emt 0:00:14]} 59. Ng4 {[%emt 0:00:09]} Qe1+ {[%emt 0:00:11]} 60. Kg2 {[%emt 0:00:07]} Qg3+ {[%emt 0:00:03]} 61. Kh1 {[%emt 0:00:18]} Qxh3+ {[%emt 0:00:18]} 62. Nh2 {[%emt 0:00:01]} Qxh4 {[%emt 0:01:02]} 63. Qg1+ {[%emt 0:00:09]} Kh7 {[%emt 0:00:04]} 64. Qa7 {[%emt 0:00:19]} Qe1+ {[%emt 0:00:31]} 65. Kg2 {[%emt 0:00:02]} Qe2+ {[%emt 0:00:08]} 66. Kh1 {[%emt 0:00:15]} Qe1+ {[%emt 0:00:12]} 67. Kg2 {[%emt 0:00:01]} Qg3+ {[%emt 0:00:03]} 68. Kf1 {[%emt 0:00:06]} Qe1+ {[%emt 0:00:50]} 69. Kg2 {[%emt 0:00:01]} Qe4+ {[%emt 0:00:11]} 70. Nf3 {[%emt 0:00:20]} Ne1+ {[%emt 0:00:12]} 71. Kh3 {[%emt 0:00:28]} Qxf3+ {[%emt 0:00:04]} 72. Kh4 {[%emt 0:00:02]} Qg3+ {[%emt 0:00:18]} 73. Kh5 {[%emt 0:00:02]} Qg6+ {[%emt 0:00:03]} 74. Kh4 {[%emt 0:00:01]} Nf3+ {[%emt 0:00:13]} 0-1

[Event "Dvorkovich Memorial Rapid 2018"]
[Site "Taganrog"]
[Date "2018.01.14"]
[Round "10"]
[White "Semenova, Elena"]
[Black "Kolmychek, Evelina"]
[Result "1-0"]
[ECO "C54"]
[WhiteElo "2238"]
[BlackElo "2013"]
[Annotator "ChessBase"]
[PlyCount "65"]
[EventDate "2018.??.??"]
[EventType "swiss"]
[EventCountry "RUS"]
[SourceTitle "playchess.com"]
[Source "ChessBase"]
[SourceQuality "1"]
[TimeControl "900+10"]

1. e4 {[%emt 0:00:00]} e5 {[%emt 0:00:12]} 2. Nf3 {[%emt 0:00:01]} Nc6 {[%emt 0:00:03]} 3. Bc4 {[%emt 0:00:00]} Nf6 {[%emt 0:00:07]} 4. d3 {[%emt 0:00:00]} Bc5 {[%emt 0:00:08]} 5. c3 {[%emt 0:00:00]} d6 {[%emt 0:00:00]} 6. O-O {[%emt 0:00:09]} O-O {[%emt 0:00:04]} 7. a4 {[%emt 0:00:14]} a6 {[%emt 0:00:02]} 8. Bg5 {[%emt 0:00:08]} h6 {[%emt 0:00:04]} 9. Bh4 {[%emt 0:00:02]} g5 {[%emt 0:00:31]} 10. Bg3 {[%emt 0:00:17]} Ne7 {[%emt 0:00:12]} 11. d4 {[%emt 0:00:28]} exd4 {[%emt 0:00:08]} 12. cxd4 {[%emt 0:00:08]} Bb6 {[%emt 0:00:04]} 13. a5 {[%emt 0:03:01]} Ba7 {[%emt 0:00:02]} 14. e5 {[%emt 0:01:01]} Ne4 {[%emt 0:01:22]} 15. Nc3 {[%emt 0:00:05]} Nxg3 {[%emt 0:00:14]} 16. hxg3 {[%emt 0:00:41]} Bg4 {[%emt 0:01:27]} 17. Ne4 {[%emt 0:01:51]} Kg7 {[%emt 0:00:16]} 18. Nf6 {[%emt 0:00:42]} Bf5 {[%emt 0:00:43]} 19. g4 {[%emt 0:00:35]} Bg6 {[%emt 0:00:30]} 20. Qb3 {[%emt 0:00:06]} Qc8 {[%emt 0:01:06]} 21. Rfe1 {[%emt 0:00:39]} Ng8 {[%emt 0:01:33]} 22. Qc3 {[%emt 0:01:10]} Nxf6 {[%emt 0:03:59]} 23. exf6+ {[%emt 0:00:02]} Kh7 {[%emt 0:00:05]} 24. Nxg5+ {[%emt 0:00:18]} Kg8 {[%emt 0:00:26]} 25. Qh3 {[%emt 0:00:21]} h5 {[%emt 0:00:16]} 26. Ne6 {[%emt 0:01:51]} Qd7 {[%emt 0:01:52]} 27. gxh5 {[%emt 0:00:21]} d5 {[%emt 0:00:01]} 28. hxg6 {[%emt 0:00:12]} fxe6 {[%emt 0:00:08]} 29. g7 {[%emt 0:01:39]} Rxf6 {[%emt 0:00:27]} 30. Qh8+ {[%emt 0:00:09]} Kf7 {[%emt 0:00:02]} 31. Qxa8 {[%emt 0:00:17]} Kxg7 {[%emt 0:00:02]} 32. Qxa7 {[%emt 0:00:16]} dxc4 {[%emt 0:00:02]} 33. Qc5 {[%emt 0:00:08]} 1-0